bitfinex/quotes_SOLUSD_20260213
["timestamp","ask_amount","ask_price","bid_price","bid_amount"]
[1770966167168,0.50011554,78.873,78.851,0.45554585]
[1770966167556,12.67877066,78.872,78.851,0.45554585]
[1770966168258,13.1788862,78.872,78.851,0.45554585]
[1770966169369,0.50011554,78.871,78.851,0.45554585]
[1770966171284,12.67909217,78.87,78.851,0.45554585]
[1770966171466,0.50011554,78.869,78.841,0.45554585]
[1770966171969,0.50011554,78.867,78.841,0.45554585]
[1770966172168,0.50011554,78.859,78.835,0.45554585]
[1770966172370,0.50011554,78.849,78.822,0.45554585]
[1770966172554,0.50011554,78.849,78.821,12.6868761]
[1770966173367,0.50011554,78.848,78.821,12.6868761]
[1770966173572,0.50011554,78.846,78.817,0.45554585]
[1770966173750,0.50011554,78.839,78.817,0.45554585]
[1770966175170,12.68423856,78.838,78.817,0.45554585]
[1770966175372,0.50011554,78.837,78.817,0.45554585]
[1770966175856,0.50011554,78.837,78.809,0.45554585]
[1770966176056,0.50011554,78.837,78.801,0.45554585]
[1770966176862,0.50011554,78.835,78.805,0.45554585]
[1770966178366,0.50011554,78.833,78.805,0.45554585]
[1770966179464,0.50011554,78.833,78.811,0.45554585]
[1770966180678,0.50011554,78.833,78.806,12.68938913]
[1770966180679,12.68295157,78.846,78.821,0.46045731]
[1770966180860,13.16681627,78.846,78.821,0.46045731]
[1770966181059,0.4838647,78.845,78.821,0.46045731]
[1770966181371,4.25068129,78.84,78.821,0.46045731]
[1770966181577,0.4838647,78.839,78.805,0.46045731]
[1770966181766,4.25068129,78.84,78.788,0.46045731]
[1770966181767,0.4838647,78.819,78.788,0.46045731]
[1770966181968,44.39033051,78.846,78.767,0.46045731]
[1770966181969,0.4838647,78.799,78.767,0.46045731]
[1770966182155,4.25068129,78.81,78.767,0.46045731]
[1770966182156,0.4838647,78.789,78.767,0.46045731]
[1770966182560,0.4838647,78.797,78.771,0.46045731]
[1770966183564,12.69099954,78.796,78.771,0.46045731]
[1770966186686,52.68,78.798,78.773,0.46045731]
[1770966187177,4.25068129,78.79,78.773,0.46045731]
[1770966187358,0.4838647,78.796,78.773,0.46045731]
[1770966188384,52.68,78.798,78.773,0.46045731]
[1770966188888,0.4838647,78.797,78.775,0.46045731]
[1770966189287,52.68,78.798,78.775,0.46045731]
[1770966189588,0.4838647,78.807,78.775,0.46045731]
[1770966189891,0.4838647,78.807,78.78,4.25068129]
[1770966190069,0.4838647,78.807,78.781,0.46045731]
[1770966190687,0.4838647,78.828,78.801,0.46045731]
[1770966190991,0.4838647,78.828,78.803,0.46045731]
[1770966193192,0.4838647,78.828,78.804,12.68971118]
[1770966193485,0.4838647,78.828,78.805,0.46045731]
[1770966193982,52.82,78.83,78.805,0.46045731]
[1770966194872,57.06769337,78.83,78.807,0.46045731]
[1770966195580,57.55155807,78.83,78.807,0.46045731]
[1770966195982,52.82,78.83,78.807,0.46045731]
[1770966196184,52.82,78.83,78.811,0.46045731]
[1770966197769,52.84,78.835,78.811,0.46045731]
[1770966200499,0.4838647,78.834,78.811,0.46045731]
[1770966200692,0.4838647,78.848,78.813,0.46045731]
[1770966200894,0.4838647,78.846,78.821,0.46045731]
[1770966203086,0.4838647,78.858,78.822,0.46045731]
[1770966203291,0.4838647,78.856,78.822,0.46045731]
[1770966203901,52.9,78.857,78.831,0.46045731]
[1770966204107,31.69744933,78.871,78.821,44.40433044]
[1770966204108,4.24769337,78.87,78.841,0.46045731]
[1770966204284,0.4838647,78.868,78.841,0.46045731]
[1770966204478,0.4838647,78.859,78.822,0.46045731]
[1770966205403,0.4838647,78.857,78.824,0.46045731]
[1770966205905,0.4838647,78.849,78.823,12.68665237]
[1770966206204,0.4838647,78.849,78.823,13.14710968]
[1770966206398,0.4838647,78.849,78.824,0.46045731]
[1770966207588,0.4838647,78.849,78.821,12.68691775]
[1770966207791,0.4838647,78.849,78.822,0.46045731]
[1770966210404,0.4838647,78.849,78.824,0.46045731]
[1770966212601,35.9456239,78.87,78.803,0.48243726]
[1770966212602,0.45198504,78.839,78.803,0.48243726]
[1770966212990,0.45198504,78.829,78.803,0.48243726]
[1770966213300,0.45198504,78.829,78.805,0.48243726]
[1770966213600,52.82,78.835,78.811,0.48243726]
[1770966213907,53.27198504,78.835,78.811,0.48243726]
[1770966214398,0.46304949,78.841,78.821,0.45521879]
[1770966214600,0.46304949,78.851,78.823,0.45521879]
[1770966214792,4.24769337,78.85,78.823,0.45521879]
[1770966215200,4.71074286,78.85,78.823,0.45521879]
[1770966215608,0.46304949,78.85,78.823,0.45521879]
[1770966216503,0.46304949,78.85,78.831,0.45521879]
[1770966216808,16.92849089,78.86,78.831,0.45521879]
[1770966216994,17.39154038,78.86,78.831,0.45521879]
[1770966217411,0.46304949,78.859,78.831,0.45521879]
[1770966219603,4.61729252,78.884,78.81,4.24769337]
[1770966219604,0.46304949,78.865,78.841,0.45521879]
[1770966220899,12.67957148,78.868,78.841,0.45521879]
[1770966221403,12.67844916,78.875,78.851,0.45521879]
[1770966221607,0.46304949,78.874,78.851,0.45521879]
[1770966223405,0.46304949,78.874,78.853,0.45521879]
[1770966226688,0.46304949,78.874,78.786,38.2]
[1770966226689,12.67346809,78.905,78.861,0.45521879]
[1770966226912,0.46304949,78.904,78.873,0.45521879]
[1770966227213,0.46304949,78.889,78.86,4.70291216]
[1770966227513,0.46304949,78.888,78.861,0.45521879]
[1770966227813,0.46304949,78.939,78.884,0.45521879]
[1770966228003,0.46304949,78.938,78.911,0.45521879]
[1770966228208,0.46304949,78.938,78.882,44.37007174]
[1770966228209,0.46304949,78.963,78.93,4.24769337]
[1770966228418,0.46304949,78.97,78.94,4.24769337]
[1770966228918,0.46304949,78.97,78.95,4.24769337]
[1770966229108,0.46304949,78.997,78.96,4.24769337]
[1770966229422,0.46304949,78.988,78.96,4.24769337]
[1770966229716,44.3049191,78.998,78.951,12.66608402]
[1770966229717,0.46304949,78.979,78.951,12.66608402]
[1770966229916,0.46304949,78.979,78.96,4.24769337]
[1770966230412,0.46304949,78.988,78.96,4.24769337]
[1770966230608,0.46304949,78.979,78.95,4.24769337]
[1770966230801,0.46304949,78.979,78.951,0.45521879]
[1770966231019,0.46304949,78.979,78.96,10.07402766]
[1770966231518,0.46304949,78.989,78.97,10.07402766]
[1770966231724,0.46304949,79.0,78.971,0.45521879]
[1770966231922,0.46304949,78.998,78.971,0.45521879]
[1770966232690,0.46304949,78.998,78.964,0.45521879]
[1770966232919,0.46304949,78.989,78.96,10.07402766]
[1770966233618,0.46304949,78.989,78.957,0.45521879]
[1770966233837,0.46304949,78.977,78.95,10.07402766]
[1770966234205,0.46304949,78.977,78.95,10.52924645]
[1770966234415,0.46304949,78.977,78.951,0.45521879]
[1770966235595,12.6617539,78.978,78.94,12.6677339]
[1770966235596,0.46304949,78.969,78.94,10.07402766]
[1770966235800,0.46304949,78.959,78.931,12.66920433]
[1770966236001,0.46304949,78.959,78.932,0.45521879]
[1770966238218,0.46304949,78.967,78.941,0.45521879]
[1770966239916,0.46304949,78.967,78.934,0.45521879]
[1770966240225,0.46304949,78.959,78.934,0.45521879]
[1770966241004,0.46902402,78.969,78.941,0.46328716]
[1770966241410,0.46902402,78.968,78.935,13.13193858]
[1770966241611,0.46902402,78.959,78.93,10.07402766]
[1770966241811,0.46902402,78.959,78.927,0.46328716]
[1770966242221,0.46902402,78.957,78.927,0.46328716]
[1770966242920,0.46902402,78.939,78.911,0.46328716]
[1770966243119,0.46902402,78.949,78.911,0.46328716]
[1770966243425,10.07402766,78.95,78.911,0.46328716]
[1770966243426,0.12794,78.929,78.911,0.46328716]
[1770966243928,0.46902402,78.949,78.921,0.46328716]
[1770966244719,13.13558935,78.948,78.921,0.46328716]
[1770966244904,0.46902402,78.947,78.921,0.46328716]
[1770966245506,13.13467906,78.954,78.931,0.46328716]
[1770966245710,0.46902402,78.954,78.931,0.46328716]
[1770966246230,13.13227636,78.969,78.941,0.46328716]
[1770966246528,52.8,78.962,78.941,0.46328716]
[1770966247206,65.4643197,78.962,78.941,0.46328716]
[1770966247411,65.93334372,78.962,78.941,0.46328716]
[1770966247806,0.46902402,78.959,78.933,0.46328716]
[1770966248515,0.46902402,78.959,78.935,0.46328716]
[1770966249107,53.28902402,78.965,78.937,0.46328716]
[1770966249303,0.46902402,78.964,78.937,0.46328716]
[1770966249531,0.46902402,78.963,78.937,0.46328716]
[1770966250025,52.84,78.963,78.937,0.46328716]
[1770966250230,0.46902402,78.962,78.937,0.46328716]
[1770966252814,0.46902402,78.962,78.939,0.46328716]
[1770966253011,0.46902402,78.969,78.94,4.23329185]
[1770966253332,52.92,78.968,78.941,0.46328716]
[1770966253514,0.46902402,78.967,78.941,0.46328716]
[1770966254930,0.46902402,78.959,78.933,0.46328716]
[1770966255735,4.23329185,78.96,78.904,0.46328716]
[1770966255736,0.46902402,78.949,78.904,0.46328716]
[1770966256031,4.23329185,78.96,78.91,4.23329185]
[1770966256032,0.46902402,78.939,78.91,4.23329185]
[1770966256932,0.46902402,78.928,78.904,0.46328716]
[1770966257142,0.46902402,78.919,78.893,13.13868294]
[1770966259445,0.46902402,78.919,78.894,0.46328716]
[1770966261244,0.46902402,78.919,78.896,0.46328716]
[1770966262942,0.46902402,78.919,78.898,0.46328716]
[1770966263343,10.09122514,78.93,78.901,0.46328716]
[1770966263524,52.96,78.929,78.901,0.46328716]
[1770966263724,10.09122514,78.94,78.901,0.46328716]
[1770966264025,52.96,78.939,78.911,0.46328716]
[1770966265331,52.96,78.939,78.913,0.46328716]
[1770966266544,0.46902402,78.929,78.892,0.46328716]
[1770966266754,10.09122514,78.92,78.892,0.46328716]
[1770966267728,0.46902402,78.926,78.892,0.46328716]
[1770966268650,0.46902402,78.926,78.894,0.46328716]
[1770966268849,0.46902402,78.926,78.901,0.46328716]
[1770966271040,10.09122514,78.93,78.903,0.49293239]
[1770966271934,10.09122514,78.92,78.903,0.49293239]
[1770966273246,0.45979419,78.918,78.891,12.67571712]
[1770966273443,0.45979419,78.918,78.892,0.49293239]
[1770966274923,0.49909942,78.924,78.892,0.49293239]
[1770966275243,10.09122514,78.92,78.894,0.49057912]
[1770966276937,10.09122514,78.92,78.896,0.49057912]
[1770966277146,63.55032456,78.94,78.901,0.49057912]
[1770966277457,12.66646969,78.949,78.92,10.09122514]
[1770966277642,31.66343723,78.956,78.895,44.36276062]
[1770966277643,0.49909942,78.959,78.931,0.49057912]
[1770966277828,0.49909942,78.958,78.931,0.49057912]
[1770966278022,10.09122514,78.95,78.925,0.49057912]
[1770966278334,10.09122514,78.95,78.895,95.06305848]
[1770966278335,0.49909942,78.929,78.906,0.49057912]
[1770966278639,10.09122514,78.94,78.911,0.49057912]
[1770966278952,0.49909942,78.939,78.911,0.49057912]
[1770966279150,10.09122514,78.94,78.913,0.49057912]
[1770966280629,0.49909942,78.945,78.915,0.49057912]
[1770966280839,4.23501946,78.95,78.921,0.49057912]
[1770966282653,0.49909942,78.951,78.923,0.49057912]
[1770966283043,0.49909942,78.953,78.923,0.49057912]
[1770966283244,4.23501946,78.95,78.923,0.49057912]
[1770966283444,52.96,78.954,78.923,0.49057912]
[1770966283649,52.96,78.954,78.922,44.34758368]
[1770966283650,0.49909942,78.967,78.931,0.49057912]
[1770966283948,4.23501946,78.96,78.931,0.49057912]
[1770966284358,0.49909942,78.959,78.931,0.49057912]
[1770966284733,0.49909942,78.949,78.925,0.49057912]
[1770966285755,0.49909942,78.949,78.922,12.67065191]
[1770966286249,0.49909942,78.949,78.923,0.49057912]
[1770966286949,0.49909942,78.949,78.925,0.49057912]
[1770966292068,0.49909942,78.949,78.926,13.16067515]
[1770966292271,0.49909942,78.949,78.927,0.49057912]
[1770966292672,52.92,78.956,78.913,12.67218329]
[1770966292673,0.49909942,78.939,78.913,12.67218329]
[1770966292866,0.49909942,78.939,78.914,0.49057912]
[1770966294647,0.49909942,78.939,78.916,0.49057912]
[1770966296860,53.02,78.944,78.921,0.49057912]
[1770966297051,0.49909942,78.943,78.921,0.49057912]
[1770966297570,31.66241278,78.958,78.921,0.49057912]
[1770966297571,53.06,78.955,78.921,0.49057912]
[1770966298065,0.49909942,78.954,78.921,0.49057912]
[1770966300570,12.66576317,78.953,78.923,0.48978938]
[1770966300962,0.46727427,78.975,78.941,0.48978938]
[1770966301166,12.65870855,78.997,78.961,0.48978938]
[1770966301167,0.46727427,78.996,78.961,0.48978938]
[1770966301351,10.08350952,79.02,78.991,0.48978938]
[1770966301671,63.14350952,79.02,78.991,0.48978938]
[1770966301866,0.46727427,79.009,78.97,10.08350952]
[1770966302449,0.46727427,79.009,78.98,22.74485153]
[1770966302770,0.46727427,79.007,78.98,22.74485153]
[1770966303371,0.46727427,79.007,78.975,12.66217379]
[1770966303567,0.46727427,79.007,78.98,10.08350952]
[1770966303750,0.46727427,79.007,78.981,0.48978938]
[1770966304455,0.46727427,79.018,78.983,0.48978938]
[1770966305465,0.46727427,79.016,78.983,0.48978938]
[1770966306669,0.46727427,79.009,78.983,0.48978938]
[1770966306869,0.46727427,79.009,78.98,10.08350952]
[1770966307770,0.46727427,79.007,78.976,0.48978938]
[1770966308075,0.46727427,78.999,78.976,0.48978938]
[1770966310375,53.1,79.0,78.981,0.48978938]
[1770966310567,31.6395621,79.015,78.977,12.66191422]
[1770966310568,53.1,79.008,78.991,0.48978938]
[1770966310964,0.46727427,79.016,78.991,0.48978938]
[1770966311271,0.46727427,79.022,79.001,0.48978938]
[1770966311674,0.46727427,79.019,79.001,0.48978938]
[1770966311879,0.46727427,79.019,78.991,0.48978938]
[1770966312462,0.46727427,79.019,78.993,0.48978938]
[1770966312779,0.46727427,79.032,79.011,0.48978938]
[1770966312955,53.1,79.036,79.011,0.48978938]
[1770966313152,0.46727427,79.035,79.011,0.48978938]
[1770966314279,53.56727427,79.035,79.011,0.48978938]
[1770966314477,12.65278234,79.034,79.011,0.48978938]
[1770966314780,0.46727427,79.029,79.004,0.48978938]
[1770966315072,0.46727427,79.029,79.005,12.65742674]
[1770966315664,0.46727427,79.019,78.983,12.66095235]
[1770966315868,0.46727427,79.019,78.984,0.48978938]
[1770966316458,0.46727427,79.019,78.99,4.22922755]
[1770966316657,0.46727427,79.019,78.991,0.48978938]
[1770966317576,0.46727427,79.019,78.993,0.48978938]
[1770966319684,0.46727427,79.017,78.989,0.48978938]
[1770966319885,0.46727427,79.017,78.976,31.65505412]
[1770966319886,0.46727427,79.017,78.99,4.22745379]
[1770966320184,0.46727427,79.017,78.991,0.48978938]
[1770966320762,0.46727427,79.017,78.981,44.31445537]
[1770966320763,0.46727427,79.009,78.981,12.66127296]
[1770966321065,0.46727427,79.009,78.982,0.48978938]
[1770966322084,0.46727427,79.009,78.984,0.48978938]
[1770966322263,12.65533457,79.019,78.991,0.48978938]
[1770966322264,0.46727427,79.019,78.991,0.48978938]
[1770966322863,0.46727427,79.018,78.991,0.48978938]
[1770966324783,0.46727427,79.018,78.992,12.65950982]
[1770966325388,0.46727427,79.016,78.984,13.15050742]
[1770966325682,0.46727427,79.009,78.984,13.15050742]
[1770966326682,0.46727427,78.999,78.974,0.48978938]
[1770966329088,0.46727427,78.999,78.975,12.66223488]
[1770966329790,0.46727427,78.999,78.976,0.48978938]
[1770966330485,12.6578363,79.003,78.981,0.48978938]
[1770966330885,13.14307094,79.003,78.981,0.48978938]
[1770966331282,0.48523464,79.003,78.981,0.48978938]
[1770966331986,13.14314203,79.002,78.981,0.48978938]
[1770966332484,0.48523464,79.002,78.981,0.48978938]
[1770966333573,12.65806761,79.001,78.981,0.48978938]
[1770966333890,0.48523464,78.999,78.976,0.45739903]
[1770966336096,0.48523464,78.999,78.977,12.66191422]
[1770966336296,0.48523464,78.999,78.978,0.47521967]
[1770966338587,0.46187017,79.01,78.98,0.47521967]
[1770966338913,0.46187017,79.008,78.98,0.47521967]
[1770966339092,0.46187017,79.008,78.981,0.47521967]
[1770966339396,0.46187017,79.008,78.983,0.47521967]
[1770966341182,0.46187017,78.999,78.976,0.47521967]
[1770966343093,0.46187017,78.999,78.978,0.47521967]
[1770966344292,4.22745379,78.99,78.961,0.47521967]
[1770966344494,0.46187017,78.979,78.941,0.47521967]
[1770966345087,0.46187017,78.979,78.95,4.22745379]
[1770966345293,0.46187017,78.979,78.951,0.47521967]
[1770966346392,53.28,78.982,78.951,0.47521967]
[1770966346803,53.28,78.982,78.952,12.66592359]
[1770966346983,4.22745379,78.98,78.953,0.47521967]
[1770966347184,0.46187017,78.979,78.953,0.47521967]
[1770966348485,0.46187017,78.979,78.955,0.47521967]
[1770966349082,0.46187017,78.979,78.928,42.54]
[1770966349083,0.46187017,78.969,78.937,0.47521967]
[1770966349283,0.46187017,78.969,78.941,0.47521967]
[1770966351102,0.46187017,78.959,78.921,0.47521967]
[1770966351916,0.46187017,78.974,78.941,0.47521967]
[1770966352895,4.68932396,78.97,78.943,0.47521967]
[1770966353409,0.46187017,78.969,78.943,0.47521967]
[1770966354291,0.46187017,78.959,78.936,13.14357232]
[1770966354490,12.66255555,78.973,78.914,0.47521967]
[1770966354491,0.46187017,78.949,78.914,0.47521967]
[1770966354697,4.22745379,78.93,78.906,0.47521967]
[1770966354898,4.22745379,78.93,78.908,0.47521967]
[1770966355198,4.22745379,78.92,78.907,12.67314686]
[1770966355708,4.22745379,78.92,78.903,12.67374586]
[1770966355908,4.68932396,78.92,78.903,12.67374586]
[1770966356114,4.22745379,78.91,78.9,0.2]
[1770966356311,0.46187017,78.909,78.88,0.47521967]
[1770966356604,4.22745379,78.9,78.882,0.47521967]
[1770966356794,4.22745379,78.9,78.876,12.67809784]
[1770966357105,0.46187017,78.909,78.877,0.47521967]
[1770966357788,0.46187017,78.899,78.877,0.47521967]
[1770966358005,0.46187017,78.899,78.876,12.67809784]
[1770966358303,0.46187017,78.899,78.864,31.69996034]
[1770966358304,0.46187017,78.889,78.865,12.67989602]
[1770966358691,0.46187017,78.879,78.854,0.47521967]
[1770966359408,0.46187017,78.879,78.855,12.68150402]
[1770966359704,4.22745379,78.88,78.856,0.47521967]
[1770966360090,4.68932396,78.88,78.856,0.47521967]
[1770966360605,0.46965041,78.899,78.861,0.46597205]
[1770966360784,4.22745379,78.89,78.861,0.46597205]
[1770966360988,0.46965041,78.889,78.863,0.46597205]
[1770966361199,0.46965041,78.869,78.842,0.46597205]
[1770966362094,0.46965041,78.859,78.821,0.46597205]
[1770966362293,0.46965041,78.859,78.81,0.2]
[1770966362294,0.46965041,78.849,78.812,0.46597205]
[1770966362910,4.22745379,78.84,78.813,12.68826208]
[1770966363088,53.24,78.86,78.81,0.2]
[1770966363089,4.22745379,78.83,78.81,0.2]
[1770966363411,0.46965041,78.829,78.81,0.2]
[1770966363907,0.46965041,78.819,78.81,0.2]
[1770966364292,0.46965041,78.839,78.801,0.46597205]
[1770966364501,0.46965041,78.839,78.811,0.46597205]
[1770966364902,0.46965041,78.829,78.804,0.46597205]
[1770966365101,0.46965041,78.829,78.804,13.15562197]
[1770966365397,0.46965041,78.819,78.8,0.2]
[1770966365796,0.46965041,78.839,78.802,0.46597205]
[1770966365993,0.46965041,78.849,78.811,0.46597205]
[1770966366505,10.1141744,78.84,78.811,0.46597205]
[1770966366713,48.34,78.856,78.801,44.41567999]
[1770966366714,0.46965041,78.829,78.802,0.46597205]
[1770966367099,0.46965041,78.829,78.801,12.69019428]
[1770966367618,10.1141744,78.82,78.801,12.69019428]
[1770966368817,0.46965041,78.819,78.8,0.2]
[1770966369199,0.46965041,78.809,78.8,0.2]
[1770966369398,0.46965041,78.809,78.781,12.69334076]
[1770966369628,10.1141744,78.8,78.776,12.69413926]
[1770966369923,10.56429227,78.8,78.776,12.69413926]
[1770966370231,0.45011787,78.799,78.776,12.69413926]
[1770966371118,0.45011787,78.799,78.747,42.48]
[1770966371119,10.1141744,78.81,78.781,0.46597205]
[1770966371815,10.1141744,78.8,78.781,0.46597205]
[1770966372001,10.1141744,78.81,78.781,0.46597205]
[1770966372201,0.45011628,78.809,78.781,0.46597205]
[1770966372510,10.1141744,78.8,78.781,0.46597205]
[1770966373208,10.1141744,78.8,78.782,12.6932548]
[1770966374814,0.45011628,78.809,78.782,13.15922685]
[1770966375005,53.26,78.818,78.791,0.46597205]
[1770966375317,10.1141744,78.81,78.792,12.69164382]
[1770966376201,10.1141744,78.81,78.793,0.46597205]
[1770966376722,31.71219758,78.835,78.793,0.46597205]
[1770966376723,53.24,78.829,78.793,0.46597205]
[1770966376906,10.1141744,78.82,78.793,0.46597205]
[1770966377304,0.45011374,78.828,78.793,0.46597205]
[1770966377505,10.1141744,78.83,78.801,0.46597205]
[1770966377710,0.45011374,78.835,78.801,0.46597205]
[1770966378207,10.1141744,78.84,78.811,0.46597205]
[1770966378402,0.45011326,78.829,78.803,0.46597205]
[1770966378597,10.56428766,78.82,78.795,0.46597205]
[1770966378903,0.45011326,78.819,78.795,0.46597205]
[1770966379218,0.45011326,78.819,78.794,12.69132167]
[1770966379423,10.1168671,78.81,78.789,12.69212707]
[1770966379718,10.56697987,78.82,78.79,0.46597205]
[1770966379899,0.45011277,78.819,78.79,0.46597205]
[1770966380101,0.45011277,78.819,78.791,0.46597205]
[1770966381020,53.26,78.847,78.811,0.46597205]
[1770966381220,10.1168671,78.85,78.821,0.46597205]
[1770966381399,10.1168671,78.85,78.822,12.68681332]
[1770966381603,10.1168671,78.85,78.823,0.46597205]
[1770966381804,10.1168671,78.86,78.823,0.46597205]
[1770966382000,0.45011182,78.859,78.823,0.46597205]
[1770966382810,10.1168671,78.85,78.823,0.46597205]
[1770966383218,0.45011182,78.859,78.825,0.46597205]
[1770966383420,0.45011089,78.869,78.841,0.46597205]
[1770966384310,0.45011089,78.869,78.841,12.68373319]
[1770966384514,0.45011089,78.869,78.842,0.46597205]
[1770966384822,10.1168671,78.86,78.837,12.68434897]
[1770966385121,10.1168671,78.86,78.838,0.46597205]
[1770966385914,13.12952414,78.868,78.838,0.46597205]
[1770966386830,0.45010954,78.867,78.839,13.15004972]
[1770966387029,0.45010954,78.867,78.839,12.68407767]
[1770966387220,0.45010954,78.867,78.84,0.46597205]
[1770966390134,10.1168671,78.86,78.84,0.46597205]
[1770966390634,0.45010954,78.867,78.842,0.47062521]
[1770966391729,10.1168671,78.92,78.861,0.47062521]
[1770966391730,10.1168671,78.89,78.861,0.47062521]
[1770966391933,10.1168671,78.88,78.861,0.47062521]
[1770966392727,0.45010656,78.869,78.836,0.47062521]
[1770966392929,10.56697366,78.86,78.836,0.47062521]
[1770966394535,10.56697366,78.86,78.83,0.48722091]
[1770966394536,0.45010536,78.859,78.83,0.48722091]
[1770966394736,0.45010536,78.857,78.83,0.48722091]
[1770966395838,0.45010496,78.849,78.823,0.48722091]
[1770966396036,10.1168671,78.85,78.823,0.48722091]
[1770966396221,10.1168671,78.86,78.831,0.48722091]
[1770966396427,53.3,78.864,78.841,0.48722091]
[1770966397233,53.3,78.864,78.842,0.48722091]
[1770966397420,53.3,78.877,78.851,0.48722091]
[1770966397621,0.45010419,78.876,78.851,0.48722091]
[1770966397823,0.45010419,78.869,78.834,0.48722091]
[1770966398032,10.1168671,78.86,78.836,0.48722091]
[1770966398741,0.45010381,78.859,78.836,0.48722091]
[1770966399042,0.45010381,78.859,78.835,12.68472125]
[1770966399223,53.3,78.877,78.82,10.1168671]
[1770966399224,10.1168671,78.85,78.825,0.48722091]
[1770966399537,53.3,78.859,78.831,0.48722091]
[1770966400029,65.98086077,78.859,78.831,0.48722091]
[1770966402045,0.45010234,78.858,78.831,0.48722091]
[1770966402344,10.1168671,78.85,78.831,0.48722091]
[1770966402727,0.45010234,78.849,78.822,12.6867393]
[1770966402922,10.1168671,78.84,78.816,13.17499314]
[1770966403127,10.56696908,78.84,78.817,0.48722091]
[1770966404030,10.56696908,78.84,78.81,10.1168671]
[1770966404031,12.68108751,78.858,78.821,0.48722091]
[1770966404243,10.1168671,78.85,78.821,0.48722091]
[1770966405344,10.56696838,78.85,78.821,0.48722091]
[1770966407944,0.45010059,78.849,78.821,0.48722091]
[1770966409049,0.45009992,78.856,78.822,0.48722091]
[1770966409248,12.68116556,78.858,78.831,0.48722091]
[1770966410444,4.24596328,78.86,78.833,0.48722091]
[1770966410751,16.92673436,78.86,78.833,0.48722091]
[1770966411136,4.24596328,78.86,78.833,0.48722091]
[1770966412251,53.32,78.863,78.841,0.48722091]
[1770966412442,12.67803851,78.877,78.841,0.48722091]
[1770966412642,66.01803851,78.877,78.841,0.48722091]
[1770966413065,0.45009894,78.876,78.841,0.48722091]
[1770966413236,4.24596328,78.86,78.841,0.48722091]
[1770966413852,53.34,78.869,78.841,0.48722091]
[1770966414036,53.34,78.869,78.834,12.68488215]
[1770966414037,53.34,78.869,78.851,0.48722091]
[1770966414435,4.24596328,78.88,78.851,0.48722091]
[1770966414959,0.45009862,78.882,78.851,0.48722091]
[1770966415338,53.34,78.886,78.861,0.48722091]
[1770966416165,0.45009768,78.879,78.843,12.68343416]
[1770966416338,0.45009768,78.879,78.844,0.48722091]
[1770966416538,0.45009768,78.869,78.844,0.48722091]
[1770966418036,4.24596328,78.87,78.844,0.48722091]
[1770966418645,4.69606036,78.87,78.846,0.48722091]
[1770966418967,0.45009708,78.874,78.846,0.48722091]
[1770966419460,0.45009678,78.873,78.846,0.48722091]
[1770966419753,4.24596328,78.87,78.846,0.48722091]
[1770966419959,4.69606006,78.87,78.846,0.48722091]
[1770966420342,4.69606006,78.87,78.847,13.17001163]
[1770966420851,53.36,78.871,78.851,0.4831621]
[1770966421239,53.38,78.875,78.851,0.4831621]
[1770966421544,0.45009591,78.874,78.851,0.4831621]
[1770966422050,53.83009591,78.873,78.851,0.4831621]
[1770966422457,0.45009591,78.873,78.851,0.4831621]
[1770966422766,0.45009562,78.869,78.848,12.68254108]
[1770966423257,4.69605862,78.86,78.838,0.4831621]
[1770966423558,4.24596328,78.86,78.838,0.4831621]
[1770966423939,53.4,78.863,78.838,0.4831621]
[1770966424549,4.24596328,78.86,78.839,0.4831621]
[1770966425457,4.69605807,78.86,78.839,0.4831621]
[1770966427763,4.69605807,78.86,78.83,4.24596328]
[1770966427764,0.45009425,78.859,78.833,0.4831621]
[1770966428064,0.45009425,78.849,78.825,0.4831621]
[1770966428362,0.45009399,78.855,78.831,0.4831621]
[1770966428549,0.45009399,78.855,78.825,12.68625628]
[1770966428550,0.45009399,78.868,78.841,0.4831621]
[1770966428865,0.45009399,78.878,78.85,4.24596328]
[1770966429069,31.69036904,78.889,78.851,0.4831621]
[1770966429070,53.46,78.877,78.851,0.4831621]
[1770966429250,53.46,78.887,78.861,0.4831621]
[1770966430066,53.46,78.887,78.863,0.4831621]
[1770966430264,0.45009347,78.902,78.871,0.4831621]
[1770966430475,0.1,78.91,78.891,0.4831621]
[1770966432171,0.45009296,78.909,78.88,4.24596328]
[1770966432368,0.45009296,78.899,78.871,0.4831621]
[1770966432664,0.45009296,78.905,78.873,0.4831621]
[1770966432866,53.46,78.908,78.881,0.4831621]
[1770966433244,0.45009271,78.909,78.881,0.4831621]
[1770966433455,53.44,78.908,78.881,0.4831621]
[1770966433657,0.45009271,78.907,78.881,0.4831621]
[1770966433949,0.45009271,78.907,78.873,0.4831621]
[1770966434549,53.44,78.908,78.853,42.18]
[1770966434550,53.89009246,78.908,78.881,0.4831621]
[1770966434745,0.45009246,78.906,78.881,0.4831621]
[1770966435070,0.45009246,78.899,78.871,0.4831621]
[1770966435372,0.45009222,78.906,78.871,0.4831621]
[1770966436372,53.44,78.908,78.881,0.4831621]
[1770966436574,66.56322955,78.908,78.881,0.4831621]
[1770966436872,0.45009197,78.907,78.881,0.4831621]